[Event "FIDE WYCC 2016 U18 boys"]
[Site "Khanty Mansiysk"]
[Date "2016.09.24"]
[Round "3.4"]
[White "Vavulin, Maksim"]
[Black "Urazayev, Arystanbek"]
[Result "1-0"]
[ECO "C84"]
[WhiteElo "2582"]
[BlackElo "2377"]
[Annotator "Reinhold Goldau"]
[PlyCount "225"]
[EventDate "2016.09.??"]
[EventType "swiss"]
[EventRounds "11"]
[EventCountry "RUS"]
[SourceTitle "Youth Database"]
[Source "CBase R.Goldau"]
[SourceDate "2000.03.01"]
[TimeControl "40/5400+30:1800+30"]

1. e4 {[%emt 0:00:00]} e5 {[%emt 0:00:00]} 2. Nf3 {[%emt 0:00:00]} Nc6 {
[%emt 0:00:00]} 3. Bb5 {[%emt 0:00:00]} a6 {[%emt 0:00:19]} 4. Ba4 {[%emt 0:00:
00]} Nf6 {[%emt 0:00:09]} 5. O-O {[%emt 0:00:10]} Be7 {[%emt 0:00:08]} 6. d3 {
[%emt 0:00:19]} b5 {[%emt 0:00:16]} 7. Bb3 {[%emt 0:00:06]} d6 {[%emt 0:00:04]}
8. a4 {[%emt 0:00:13]} Bd7 {[%emt 0:01:42]} 9. Bd2 {[%emt 0:00:15]} O-O {
[%emt 0:04:12]} 10. axb5 {[%emt 0:00:09]} axb5 {[%emt 0:00:29]} 11. Nc3 {
[%emt 0:00:05]} Nd4 {[%emt 0:11:02]} 12. Nxd4 {[%emt 0:07:01]} exd4 {[%emt 0:
00:39]} 13. Ne2 {[%emt 0:07:36]} c5 {[%emt 0:01:46]} 14. Bg5 {[%emt 0:00:46]}
Be6 {[%emt 0:12:41]} 15. Nf4 {[%emt 0:07:10]} Rxa1 {[%emt 0:15:28]} 16. Qxa1 {
[%emt 0:00:08]} Bxb3 {[%emt 0:00:25]} 17. cxb3 {[%emt 0:00:42]} Ng4 {[%emt 0:
01:08]} 18. Qd1 {[%emt 0:11:35]} Bxg5 {[%emt 0:05:25]} 19. Qxg4 {[%emt 0:00:06]
} Bxf4 {[%emt 0:01:10]} 20. Qxf4 {[%emt 0:00:02]} Qe7 {[%emt 0:06:20]} 21. Qf5
{[%emt 0:11:57]} Ra8 {[%emt 0:07:26]} 22. Qd5 {[%emt 0:06:35]} Ra2 {[%emt 0:03:
58]} 23. b4 {[%emt 0:10:19]} Rxb2 {[%emt 0:04:44]} 24. bxc5 {[%emt 0:00:24]}
dxc5 {[%emt 0:00:38]} 25. g3 {[%emt 0:01:40]} h6 {[%emt 0:08:39]} 26. Ra1 {
[%emt 0:13:32]} Qf6 {[%emt 0:07:23]} 27. Rf1 {[%emt 0:08:20]} Qe7 {[%emt 0:01:
51]} 28. h4 {[%emt 0:08:58]} Qa7 {[%emt 0:01:52]} 29. e5 {[%emt 0:03:59]} Rd2 {
[%emt 0:03:22]} 30. Rc1 {[%emt 0:00:57]} Qa2 {[%emt 0:01:07]} 31. Qxa2 {
[%emt 0:01:12]} Rxa2 {[%emt 0:00:05]} 32. Rxc5 {[%emt 0:00:03]} Rd2 {[%emt 0:
00:43]} 33. Rxb5 {[%emt 0:01:27]} Rxd3 {[%emt 0:00:05]} 34. Rb8+ {[%emt 0:00:
37]} Kh7 {[%emt 0:00:07]} 35. Rf8 {[%emt 0:00:32]} Rd1+ {[%emt 0:01:15]} 36.
Kg2 {[%emt 0:00:04]} Re1 {[%emt 0:00:36]} 37. f4 {[%emt 0:00:59]} d3 {[%emt 0:
00:42]} 38. Rd8 {[%emt 0:00:07]} Rd1 {[%emt 0:00:07]} 39. Kf2 {[%emt 0:00:52]}
h5 {[%emt 0:00:47]} 40. Ke3 {[%emt 0:00:00]} Rg1 {[%emt 0:00:00]} 41. f5 {
[%emt 0:08:41]} Re1+ {[%emt 0:15:27]} 42. Kf4 {[%emt 0:00:18]} Rf1+ {[%emt 0:
00:56]} 43. Kg5 {[%emt 0:00:33]} Re1 {[%emt 0:01:06]} 44. Kxh5 {[%emt 0:05:12]}
Rxe5 {[%emt 0:03:04]} 45. Kg5 {[%emt 0:01:12]} f6+ {[%emt 0:05:18]} 46. Kf4 {
[%emt 0:00:17]} Ra5 {[%emt 0:00:38]} 47. Rxd3 {[%emt 0:00:18]} Ra4+ {[%emt 0:
00:18]} 48. Kf3 {[%emt 0:00:50]} Kg8 {[%emt 0:00:11]} 49. Rd8+ {[%emt 0:00:42]}
Kf7 {[%emt 0:00:15]} 50. Rd7+ {[%emt 0:00:08]} Kf8 {[%emt 0:01:01]} 51. Rd3 {
[%emt 0:03:42]} Ke7 {[%emt 0:02:54]} 52. Re3+ {[%emt 0:00:45]} Kf7 {[%emt 0:00:
33]} 53. Re4 {[%emt 0:00:10]} Ra1 {[%emt 0:00:32]} 54. Kg4 {[%emt 0:00:38]} Ra3
{[%emt 0:00:38]} 55. Rf4 {[%emt 0:04:22]} g6 {[%emt 0:01:47]} 56. fxg6+ {
[%emt 0:00:47]} Kxg6 {[%emt 0:00:03]} 57. Rb4 {[%emt 0:01:01]} Rc3 {[%emt 0:01:
01]} 58. Kf4 {[%emt 0:01:04]} Rc1 {[%emt 0:00:18]} 59. Rb5 {[%emt 0:04:36]}
Rc4+ {[%emt 0:00:50]} 60. Kf3 {[%emt 0:00:05]} Rc3+ {[%emt 0:00:22]} 61. Kg2 {
[%emt 0:01:16]} Ra3 {[%emt 0:00:09]} 62. Kh3 {[%emt 0:00:11]} Ra4 {[%emt 0:00:
55]} 63. h5+ {[%emt 0:00:41]} Kh6 {[%emt 0:00:22]} 64. g4 {[%emt 0:00:08]} Ra1
{[%emt 0:00:58]} 65. Rf5 {[%emt 0:02:04]} Kg7 {[%emt 0:00:23]} 66. Rf3 {
[%emt 0:00:11]} Rb1 {[%emt 0:00:34]} 67. Kg3 {[%emt 0:01:27]} Rb4 {[%emt 0:00:
30]} 68. Rd3 {[%emt 0:00:24]} Rb1 {[%emt 0:01:27]} 69. Rd7+ {[%emt 0:01:10]}
Kh6 {[%emt 0:00:58]} 70. Kf4 {[%emt 0:00:10]} Rf1+ {[%emt 0:00:53]} 71. Ke4 {
[%emt 0:00:05]} Rg1 {[%emt 0:00:47]} 72. Kf3 {[%emt 0:02:04]} Rf1+ {[%emt 0:00:
25]} 73. Kg2 {[%emt 0:00:04]} Rf4 {[%emt 0:00:20]} 74. Kg3 {[%emt 0:00:13]} Rf1
{[%emt 0:00:28]} 75. Rd3 {[%emt 0:02:27]} Kg7 {[%emt 0:00:22]} 76. Rc3 {
[%emt 0:00:30]} Ra1 {[%emt 0:00:40]} 77. Rc7+ {[%emt 0:00:34]} Kh6 {[%emt 0:00:
06]} 78. Kf4 {[%emt 0:00:29]} Rf1+ {[%emt 0:00:13]} 79. Ke4 {[%emt 0:00:28]}
Rg1 {[%emt 0:00:23]} 80. Kf4 {[%emt 0:00:32]} Rf1+ {[%emt 0:00:11]} 81. Kg3 {
[%emt 0:00:31]} Ra1 {[%emt 0:00:07]} 82. Rc8 {[%emt 0:00:31]} Kg7 {[%emt 0:00:
20]} 83. Re8 {[%emt 0:00:29]} Kf7 {[%emt 0:00:15]} 84. Re3 {[%emt 0:00:12]} Kg7
{[%emt 0:00:11]} 85. Kf4 {[%emt 0:00:22]} Rf1+ {[%emt 0:00:17]} 86. Rf3 {
[%emt 0:00:40]} Re1 {[%emt 0:00:11]} 87. Rd3 {[%emt 0:00:44]} Rf1+ {[%emt 0:00:
40]} 88. Ke4 {[%emt 0:00:15]} Rg1 {[%emt 0:01:20]} 89. Kf5 {[%emt 0:00:46]}
Rf1+ {[%emt 0:00:10]} 90. Ke6 {[%emt 0:00:30]} Re1+ {[%emt 0:00:28]} 91. Kf5 {
[%emt 0:00:31]} Rf1+ {[%emt 0:00:10]} 92. Ke4 {[%emt 0:00:29]} Rg1 {[%emt 0:00:
10]} 93. Kf3 {[%emt 0:00:32]} Ra1 {[%emt 0:00:23]} 94. Rd7+ {[%emt 0:00:30]}
Kh6 {[%emt 0:02:21]} 95. Rf7 {[%emt 0:00:08]} Rf1+ {[%emt 0:01:55]} 96. Ke4 {
[%emt 0:00:11]} Rf2 {[%emt 0:00:44]} 97. Ke3 {[%emt 0:01:08]} Rf1 {[%emt 0:00:
18]} 98. Ke4 {[%emt 0:00:32]} Rf2 {[%emt 0:00:15]} 99. Rd7 {[%emt 0:00:31]} Rf1
{[%emt 0:00:30]} 100. Ke3 {[%emt 0:00:30]} Rg1 {[%emt 0:00:23]} 101. Kf3 {
[%emt 0:00:22]} Ra1 {[%emt 0:00:16]} 102. Rf7 {[%emt 0:00:21]} Rf1+ {[%emt 0:
00:32]} 103. Ke3 {[%emt 0:00:03]} Kg5 {[%emt 0:01:31]} 104. Rg7+ {[%emt 0:00:
05]} Kh6 {[%emt 0:00:05]} 105. Rg6+ {[%emt 0:00:04]} Kh7 {[%emt 0:00:03]} 106.
Ke4 {[%emt 0:00:22]} Rf2 {[%emt 0:00:36]} 107. Kd5 {[%emt 0:00:06]} f5 {
[%emt 0:00:50]} 108. g5 {[%emt 0:00:00]} Rh2 {[%emt 0:00:47]} 109. Ke6 {
[%emt 0:00:00]} Rxh5 {[%emt 0:01:03]} 110. Kf7 {[%emt 0:00:00]} f4 {[%emt 0:00:
30]} 111. Rg7+ {[%emt 0:00:00]} Kh8 {[%emt 0:00:04]} 112. Rg8+ {[%emt 0:00:00]}
Kh7 {[%emt 0:00:15]} 113. g6+ {[%emt 0:00:00]} 1-0

[Event "FIDE WYCC 2016 U18 girls"]
[Site "Khanty Mansiysk"]
[Date "2016.09.22"]
[Round "1.1"]
[White "Khomeriki, Nino"]
[Black "Wu, Min"]
[Result "1/2-1/2"]
[ECO "A07"]
[WhiteElo "2357"]
[BlackElo "1996"]
[Annotator "Reinhold Goldau"]
[PlyCount "145"]
[EventDate "2016.09.??"]
[EventType "swiss"]
[EventRounds "11"]
[EventCountry "RUS"]
[SourceTitle "Youth Database"]
[Source "CBase R.Goldau"]
[SourceDate "2000.03.01"]
[TimeControl "40/5400+30:1800+30"]

1. Nf3 {[%emt 0:00:00]} d5 {[%emt 0:00:00]} 2. g3 {[%emt 0:00:00]} Nf6 {
[%emt 0:00:00]} 3. Bg2 {[%emt 0:00:13]} Bf5 {[%emt 0:00:21]} 4. c4 {[%emt 0:00:
16]} e6 {[%emt 0:08:10]} 5. Qb3 Na6 {[%emt 0:00:48]} 6. d3 {[%emt 0:19:06]} Nc5
{[%emt 0:08:08]} 7. Qc2 {[%emt 0:01:05]} h6 {[%emt 0:10:08]} 8. O-O {[%emt 0:
01:22]} Be7 {[%emt 0:08:12]} 9. b4 {[%emt 0:05:20]} Ncd7 {[%emt 0:00:40]} 10.
cxd5 {[%emt 0:00:50]} Nxd5 {[%emt 0:08:54]} 11. Bb2 {[%emt 0:05:27]} N7f6 {
[%emt 0:17:14]} 12. e4 {[%emt 0:25:07]} Nxb4 {[%emt 0:00:38]} 13. Qa4+ {
[%emt 0:00:15]} b5 {[%emt 0:07:36]} 14. Qxb5+ {[%emt 0:00:26]} c6 {[%emt 0:00:
06]} 15. Qa4 {[%emt 0:01:03]} Bg4 {[%emt 0:08:54]} 16. Bc3 {[%emt 0:22:55]} Qb6
{[%emt 0:04:11]} 17. Na3 {[%emt 0:04:07]} Qa6 {[%emt 0:03:00]} 18. Qxa6 {
[%emt 0:01:09]} Nxa6 {[%emt 0:00:05]} 19. Nc4 {[%emt 0:00:14]} O-O {[%emt 0:04:
07]} 20. Nfe5 {[%emt 0:01:02]} Bb4 {[%emt 0:03:05]} 21. Rfc1 {[%emt 0:02:38]}
Be2 {[%emt 0:02:26]} 22. Nxc6 {[%emt 0:01:16]} Bc5 {[%emt 0:03:10]} 23. N4e5 {
[%emt 0:03:59]} Rac8 {[%emt 0:00:47]} 24. Bf1 {[%emt 0:03:22]} Bxf1 {[%emt 0:
00:20]} 25. Kxf1 {[%emt 0:00:01]} Rfe8 {[%emt 0:00:40]} 26. Ke2 {[%emt 0:00:14]
} h5 {[%emt 0:00:33]} 27. Rab1 {[%emt 0:01:01]} Ng4 {[%emt 0:00:26]} 28. Nxg4 {
[%emt 0:00:57]} hxg4 {[%emt 0:00:11]} 29. Ne5 {[%emt 0:00:07]} f5 {[%emt 0:00:
59]} 30. Nc4 {[%emt 0:00:57]} Red8 {[%emt 0:00:37]} 31. Be5 {[%emt 0:00:17]}
Nb4 {[%emt 0:00:23]} 32. d4 {[%emt 0:00:42]} Be7 {[%emt 0:00:25]} 33. a3 {
[%emt 0:00:20]} Nc6 {[%emt 0:00:19]} 34. a4 {[%emt 0:00:41]} Nxd4+ {[%emt 0:00:
17]} 35. Ke3 {[%emt 0:00:28]} Bc5 {[%emt 0:00:50]} 36. Bxd4 {[%emt 0:00:30]}
Rxd4 {[%emt 0:00:13]} 37. Ke2 {[%emt 0:00:20]} Rxe4+ {[%emt 0:00:45]} 38. Ne3 {
[%emt 0:00:01]} Rc7 {[%emt 0:00:23]} 39. Rb8+ {[%emt 0:01:01]} Kh7 {[%emt 0:00:
31]} 40. Rb5 {[%emt 0:00:00]} Bb6 {[%emt 0:00:00]} 41. Rxc7 {[%emt 0:07:05]}
Bxc7 {[%emt 0:00:55]} 42. Rb7 {[%emt 0:00:03]} Bb6 {[%emt 0:00:31]} 43. a5 {
[%emt 0:00:11]} Bxa5 {[%emt 0:03:16]} 44. Rxa7 {[%emt 0:00:06]} Bb6 {[%emt 0:
03:06]} 45. Ra6 {[%emt 0:05:42]} Bc5 {[%emt 0:06:05]} 46. Rc6 {[%emt 0:00:42]}
Bxe3 {[%emt 0:05:27]} 47. fxe3 {[%emt 0:00:05]} Kg6 {[%emt 0:00:24]} 48. Kf2 {
[%emt 0:01:31]} Kf6 {[%emt 0:00:33]} 49. Rc5 {[%emt 0:00:59]} Ra4 {[%emt 0:00:
51]} 50. Rc2 {[%emt 0:00:32]} g5 {[%emt 0:05:17]} 51. Rb2 {[%emt 0:00:40]} Ke5
{[%emt 0:01:02]} 52. Ke2 {[%emt 0:02:57]} Ke4 {[%emt 0:00:54]} 53. Rc2 {
[%emt 0:00:13]} e5 {[%emt 0:00:28]} 54. Rb2 {[%emt 0:00:11]} f4 {[%emt 0:00:55]
} 55. gxf4 {[%emt 0:00:11]} gxf4 {[%emt 0:00:14]} 56. exf4 {[%emt 0:00:04]}
Kxf4 {[%emt 0:02:41]} 57. Kf2 {[%emt 0:10:09]} e4 {[%emt 0:02:11]} 58. Kg2 {
[%emt 0:03:02]} Rd4 {[%emt 0:00:32]} 59. Rf2+ {[%emt 0:04:00]} Ke3 {[%emt 0:01:
16]} 60. Kg3 {[%emt 0:00:06]} Rd2 {[%emt 0:00:25]} 61. Rf8 {[%emt 0:00:49]} Kd3
{[%emt 0:01:26]} 62. Rd8+ {[%emt 0:00:29]} Ke2 {[%emt 0:01:50]} 63. Re8 {
[%emt 0:00:05]} e3 {[%emt 0:00:59]} 64. Kxg4 {[%emt 0:00:05]} Rd4+ {[%emt 0:00:
21]} 65. Kg3 {[%emt 0:01:21]} Rd7 {[%emt 0:00:39]} 66. h4 {[%emt 0:01:58]} Rg7+
{[%emt 0:00:09]} 67. Kf4 {[%emt 0:00:15]} Kf2 {[%emt 0:01:07]} 68. h5 {[%emt 0:
00:04]} e2 {[%emt 0:00:31]} 69. Kf5 {[%emt 0:00:27]} e1=Q {[%emt 0:00:20]} 70.
Rxe1 {[%emt 0:00:03]} Kxe1 {[%emt 0:00:04]} 71. h6 {[%emt 0:00:05]} Rh7 {
[%emt 0:01:05]} 72. Kg6 {[%emt 0:00:05]} Rxh6+ {[%emt 0:00:03]} 73. Kxh6
1/2-1/2

[Event "FIDE WYCC 2016 U18 girls"]
[Site "Khanty Mansiysk"]
[Date "2016.09.22"]
[Round "1.2"]
[White "Krasnokutskaya, Sofiya"]
[Black "Tsolakidou, Stavroula"]
[Result "0-1"]
[ECO "B51"]
[WhiteElo "2086"]
[BlackElo "2355"]
[Annotator "Reinhold Goldau"]
[PlyCount "104"]
[EventDate "2016.09.??"]
[EventType "swiss"]
[EventRounds "11"]
[EventCountry "RUS"]
[SourceTitle "Youth Database"]
[Source "CBase R.Goldau"]
[SourceDate "2000.03.01"]
[TimeControl "40/5400+30:1800+30"]

1. e4 {[%emt 0:00:00]} c5 {[%emt 0:00:00]} 2. Nf3 {[%emt 0:00:00]} d6 {[%emt 0:
00:00]} 3. Bb5+ {[%emt 0:00:00]} Nd7 {[%emt 0:00:00]} 4. O-O {[%emt 0:00:29]}
a6 {[%emt 0:00:07]} 5. Bd3 {[%emt 0:00:18]} Ngf6 {[%emt 0:01:55]} 6. c3 {
[%emt 0:01:10]} b5 {[%emt 0:00:39]} 7. Bc2 {[%emt 0:05:26]} Bb7 {[%emt 0:00:10]
} 8. Re1 {[%emt 0:00:15]} c4 {[%emt 0:03:02]} 9. b4 {[%emt 0:13:46]} e6 {
[%emt 0:19:07]} 10. d3 {[%emt 0:09:22]} cxd3 {[%emt 0:01:47]} 11. Qxd3 {
[%emt 0:03:12]} Nb6 {[%emt 0:03:56]} 12. Bg5 {[%emt 0:07:33]} Rc8 {[%emt 0:08:
06]} 13. Bb3 {[%emt 0:09:24]} Be7 {[%emt 0:06:06]} 14. Nbd2 {[%emt 0:05:24]}
O-O {[%emt 0:05:37]} 15. Rac1 {[%emt 0:07:25]} Rc7 {[%emt 0:06:23]} 16. Qd4 {
[%emt 0:08:32]} Nfd7 {[%emt 0:09:49]} 17. Bxe7 {[%emt 0:01:52]} Qxe7 {[%emt 0:
00:04]} 18. c4 {[%emt 0:04:14]} Rfc8 {[%emt 0:08:11]} 19. Rc2 {[%emt 0:03:25]}
bxc4 {[%emt 0:06:31]} 20. Nxc4 {[%emt 0:02:04]} Nxc4 {[%emt 0:02:28]} 21. Rxc4
{[%emt 0:01:02]} Rxc4 {[%emt 0:01:40]} 22. Bxc4 {[%emt 0:00:05]} Ne5 {[%emt 0:
00:42]} 23. Be2 {[%emt 0:04:34]} Rc2 {[%emt 0:02:27]} 24. Nxe5 {[%emt 0:07:48]}
dxe5 {[%emt 0:00:05]} 25. Qxe5 {[%emt 0:01:12]} Qxb4 {[%emt 0:00:41]} 26. Rd1 {
[%emt 0:00:09]} h6 {[%emt 0:05:24]} 27. Bf3 {[%emt 0:02:15]} Qb6 {[%emt 0:02:
26]} 28. Qb8+ {[%emt 0:01:16]} Kh7 {[%emt 0:00:50]} 29. Qg3 {[%emt 0:00:14]}
Rxa2 {[%emt 0:02:09]} 30. e5 {[%emt 0:00:31]} Rb2 {[%emt 0:02:16]} 31. Bxb7 {
[%emt 0:01:01]} Qxb7 {[%emt 0:00:04]} 32. Qd3+ {[%emt 0:00:18]} g6 {[%emt 0:00:
07]} 33. h3 {[%emt 0:00:11]} Rb5 {[%emt 0:01:00]} 34. Qc3 {[%emt 0:00:52]} Rb1
{[%emt 0:01:25]} 35. Rxb1 {[%emt 0:00:04]} Qxb1+ {[%emt 0:00:04]} 36. Kh2 {
[%emt 0:00:02]} Qb5 {[%emt 0:01:18]} 37. f4 {[%emt 0:01:38]} Qa4 {[%emt 0:01:
13]} 38. Kg3 {[%emt 0:00:42]} Kg7 {[%emt 0:00:28]} 39. Qc5 {[%emt 0:00:21]} g5
{[%emt 0:00:39]} 40. fxg5 {[%emt 0:00:00]} hxg5 {[%emt 0:00:00]} 41. Kf2 {
[%emt 0:06:45]} a5 {[%emt 0:05:42]} 42. Kg1 {[%emt 0:02:46]} Qb4 {[%emt 0:02:
30]} 43. Qe3 {[%emt 0:02:11]} Qf4 {[%emt 0:01:25]} 44. Qc3 {[%emt 0:04:07]} a4
{[%emt 0:02:10]} 45. Kh1 {[%emt 0:08:12]} Qe4 {[%emt 0:02:41]} 46. Qb2 {
[%emt 0:04:40]} Qe3 {[%emt 0:03:56]} 47. Qa1 {[%emt 0:03:02]} a3 {[%emt 0:03:
04]} 48. Kh2 {[%emt 0:01:03]} Qc5 {[%emt 0:02:08]} 49. Kh1 {[%emt 0:01:09]} Qa5
{[%emt 0:02:32]} 50. Qc1 {[%emt 0:01:36]} a2 {[%emt 0:00:42]} 51. Qa1 {[%emt 0:
01:04]} Qa4 {[%emt 0:00:40]} 52. Kh2 {[%emt 0:00:35]} Kg6 {[%emt 0:00:58]} 0-1

[Event "FIDE WYCC 2016 U18 girls"]
[Site "Khanty Mansiysk"]
[Date "2016.09.22"]
[Round "1.3"]
[White "Lingur, Zalina"]
[Black "Unuk, Laura"]
[Result "1-0"]
[ECO "A36"]
[WhiteElo "1986"]
[BlackElo "2332"]
[Annotator "Reinhold Goldau"]
[PlyCount "85"]
[EventDate "2016.09.??"]
[EventType "swiss"]
[EventRounds "11"]
[EventCountry "RUS"]
[SourceTitle "Youth Database"]
[Source "CBase R.Goldau"]
[SourceDate "2000.03.01"]
[TimeControl "40/5400+30:1800+30"]

1. c4 {[%emt 0:00:00]} Nf6 {[%emt 0:01:04]} 2. Nc3 {[%emt 0:00:00]} c5 {
[%emt 0:00:58]} 3. e4 {[%emt 0:00:00]} Nc6 {[%emt 0:00:28]} 4. g3 {[%emt 0:01:
46]} g6 {[%emt 0:02:19]} 5. Bg2 {[%emt 0:00:02]} Bg7 {[%emt 0:00:12]} 6. Nge2 {
[%emt 0:00:14]} d6 {[%emt 0:01:47]} 7. d3 {[%emt 0:03:12]} O-O {[%emt 0:02:58]}
8. O-O {[%emt 0:00:05]} a6 {[%emt 0:00:37]} 9. h3 {[%emt 0:02:17]} Rb8 {
[%emt 0:00:57]} 10. a4 {[%emt 0:00:25]} Ne8 {[%emt 0:03:57]} 11. Be3 {[%emt 0:
06:41]} Nc7 {[%emt 0:04:01]} 12. d4 {[%emt 0:03:33]} cxd4 {[%emt 0:14:53]} 13.
Nxd4 {[%emt 0:01:04]} Ne6 {[%emt 0:01:46]} 14. Nde2 {[%emt 0:02:12]} Nc5 {
[%emt 0:05:16]} 15. Rb1 {[%emt 0:14:52]} Nb4 {[%emt 0:12:49]} 16. Bd4 {[%emt 0:
19:41]} Bd7 {[%emt 0:02:04]} 17. Bxg7 {[%emt 0:07:14]} Kxg7 {[%emt 0:00:24]}
18. Nd4 {[%emt 0:00:08]} Qc8 {[%emt 0:03:46]} 19. Kh2 {[%emt 0:02:34]} Ncd3 {
[%emt 0:00:40]} 20. b3 {[%emt 0:05:52]} Qc5 {[%emt 0:01:05]} 21. Nc2 {[%emt 0:
01:31]} b5 {[%emt 0:00:37]} 22. Nxb4 {[%emt 0:01:52]} Nxb4 {[%emt 0:00:18]} 23.
axb5 {[%emt 0:01:24]} axb5 {[%emt 0:03:51]} 24. Rc1 {[%emt 0:09:03]} bxc4 {
[%emt 0:06:26]} 25. bxc4 {[%emt 0:00:35]} Rfc8 {[%emt 0:00:50]} 26. Nd5 {
[%emt 0:04:13]} e6 {[%emt 0:00:21]} 27. Ne3 {[%emt 0:00:43]} Nc6 {[%emt 0:01:
09]} 28. Qd2 {[%emt 0:01:20]} Nd4 {[%emt 0:03:49]} 29. Rcd1 {[%emt 0:05:53]} e5
{[%emt 0:01:57]} 30. f4 {[%emt 0:00:04]} Rb3 {[%emt 0:03:05]} 31. fxe5 {
[%emt 0:03:49]} dxe5 {[%emt 0:00:10]} 32. Qf2 {[%emt 0:00:14]} Qe7 {[%emt 0:03:
30]} 33. Nd5 {[%emt 0:00:29]} Qe6 {[%emt 0:00:14]} 34. Rxd4 {[%emt 0:01:20]}
exd4 {[%emt 0:02:54]} 35. Qxd4+ {[%emt 0:00:04]} Kh6 {[%emt 0:00:54]} 36. Qd2+
{[%emt 0:00:38]} Kg7 {[%emt 0:00:30]} 37. Qd4+ {[%emt 0:00:11]} Kh6 {[%emt 0:
00:05]} 38. Rf4 {[%emt 0:03:05]} f6 {[%emt 0:03:22]} 39. Rxf6 {[%emt 0:00:29]}
Qe8 {[%emt 0:01:11]} 40. Rf4 {[%emt 0:00:00]} g5 {[%emt 0:00:00]} 41. Rf6+ {
[%emt 0:02:40]} Kh5 {[%emt 0:01:59]} 42. Nf4+ {[%emt 0:02:38]} gxf4 {[%emt 0:
00:25]} 43. Qd5+ {[%emt 0:00:16]} 1-0

[Event "FIDE WYCC 2016 U18 girls"]
[Site "Khanty Mansiysk"]
[Date "2016.09.22"]
[Round "1.4"]
[White "Obolentseva, Alexandra"]
[Black "Yakimenko, Anastasia"]
[Result "1-0"]
[ECO "E70"]
[WhiteElo "2331"]
[BlackElo "1983"]
[Annotator "Reinhold Goldau"]
[PlyCount "81"]
[EventDate "2016.09.??"]
[EventType "swiss"]
[EventRounds "11"]
[EventCountry "RUS"]
[SourceTitle "Youth Database"]
[Source "CBase R.Goldau"]
[SourceDate "2000.03.01"]
[TimeControl "40/5400+30:1800+30"]

1. d4 {[%emt 0:00:00]} c5 {[%emt 0:00:00]} 2. d5 {[%emt 0:00:00]} d6 {[%emt 0:
00:14]} 3. c4 {[%emt 0:00:16]} g6 {[%emt 0:02:06]} 4. e4 {[%emt 0:01:03]} Nf6 {
[%emt 0:01:00]} 5. Nc3 {[%emt 0:00:06]} Bg7 {[%emt 0:01:42]} 6. Nge2 {[%emt 0:
00:42]} Na6 {[%emt 0:11:08]} 7. Ng3 {[%emt 0:00:22]} Nc7 {[%emt 0:02:14]} 8.
Be2 {[%emt 0:00:21]} b6 {[%emt 0:02:25]} 9. O-O {[%emt 0:00:25]} Ba6 {[%emt 0:
02:46]} 10. Re1 {[%emt 0:05:16]} Qd7 {[%emt 0:06:52]} 11. a4 {[%emt 0:12:24]}
h5 {[%emt 0:08:21]} 12. f3 {[%emt 0:01:32]} h4 {[%emt 0:04:54]} 13. Nh1 {
[%emt 0:01:04]} Nh5 {[%emt 0:04:50]} 14. Be3 {[%emt 0:01:40]} Be5 {[%emt 0:07:
19]} 15. Qd2 {[%emt 0:01:15]} O-O {[%emt 0:07:08]} 16. f4 {[%emt 0:01:41]} Bg7
{[%emt 0:02:33]} 17. Nf2 {[%emt 0:06:33]} Ne8 {[%emt 0:03:55]} 18. b3 {[%emt 0:
05:27]} Nhf6 {[%emt 0:09:00]} 19. e5 {[%emt 0:03:14]} Nh7 {[%emt 0:05:38]} 20.
Bg4 {[%emt 0:03:19]} Qd8 {[%emt 0:00:42]} 21. Nd3 {[%emt 0:00:49]} Bc8 {
[%emt 0:01:12]} 22. Qe2 {[%emt 0:01:46]} f5 {[%emt 0:01:33]} 23. Bf3 {[%emt 0:
01:54]} Rb8 {[%emt 0:02:10]} 24. Rad1 {[%emt 0:04:56]} b5 {[%emt 0:03:52]} 25.
Nxb5 {[%emt 0:02:47]} a6 {[%emt 0:00:09]} 26. Na7 {[%emt 0:00:16]} Rxb3 {
[%emt 0:01:43]} 27. Nc6 {[%emt 0:00:07]} Qc7 {[%emt 0:01:46]} 28. Qc2 {[%emt 0:
00:17]} Rb6 {[%emt 0:01:22]} 29. Bd2 {[%emt 0:00:27]} Rxc6 {[%emt 0:00:48]} 30.
dxc6 {[%emt 0:00:06]} dxe5 {[%emt 0:03:27]} 31. fxe5 {[%emt 0:00:10]} g5 {
[%emt 0:00:24]} 32. Nxc5 {[%emt 0:00:53]} Bxe5 {[%emt 0:00:50]} 33. Bd5+ {
[%emt 0:00:05]} e6 {[%emt 0:00:59]} 34. Bxe6+ {[%emt 0:00:42]} Bxe6 {[%emt 0:
01:13]} 35. Nxe6 {[%emt 0:00:06]} Bxh2+ {[%emt 0:00:11]} 36. Kh1 {[%emt 0:00:
07]} Qxc6 {[%emt 0:00:44]} 37. Kxh2 {[%emt 0:00:33]} Rf6 {[%emt 0:00:38]} 38.
Nxg5 {[%emt 0:01:14]} Ng7 {[%emt 0:00:35]} 39. Nxh7 {[%emt 0:00:31]} Kxh7 {
[%emt 0:00:04]} 40. Bf4 {[%emt 0:00:00]} Nh5 {[%emt 0:00:00]} 41. Re7+ {
[%emt 0:00:47]} 1-0

[Event "FIDE WYCC 2016 U18 girls"]
[Site "Khanty Mansiysk"]
[Date "2016.09.24"]
[Round "3.1"]
[White "Gazikova, Veronika"]
[Black "Tsolakidou, Stavroula"]
[Result "0-1"]
[ECO "A47"]
[WhiteElo "2213"]
[BlackElo "2355"]
[Annotator "Reinhold Goldau"]
[PlyCount "78"]
[EventDate "2016.09.??"]
[EventType "swiss"]
[EventRounds "11"]
[EventCountry "RUS"]
[SourceTitle "Youth Database"]
[Source "CBase R.Goldau"]
[SourceDate "2000.03.01"]
[TimeControl "40/5400+30:1800+30"]

1. d4 {[%emt 0:00:00]} Nf6 {[%emt 0:00:00]} 2. Nf3 {[%emt 0:00:00]} e6 {
[%emt 0:00:00]} 3. e3 {[%emt 0:00:05]} b6 {[%emt 0:00:10]} 4. Bd3 {[%emt 0:00:
10]} Bb7 {[%emt 0:00:09]} 5. Nbd2 {[%emt 0:00:18]} c5 {[%emt 0:00:33]} 6. O-O {
[%emt 0:00:20]} Be7 {[%emt 0:01:17]} 7. c3 {[%emt 0:00:39]} cxd4 {[%emt 0:07:
50]} 8. exd4 {[%emt 0:02:28]} d6 {[%emt 0:03:27]} 9. Qe2 {[%emt 0:00:34]} Nbd7
{[%emt 0:01:03]} 10. Nc4 {[%emt 0:01:12]} O-O {[%emt 0:01:37]} 11. Bf4 {
[%emt 0:02:12]} Qc7 {[%emt 0:02:10]} 12. h3 {[%emt 0:06:59]} Rfe8 {[%emt 0:02:
30]} 13. Bh2 {[%emt 0:04:21]} Bf8 {[%emt 0:04:47]} 14. Rae1 {[%emt 0:10:24]} a6
{[%emt 0:05:40]} 15. Nfd2 {[%emt 0:12:14]} b5 {[%emt 0:11:57]} 16. Ne3 {
[%emt 0:00:27]} e5 {[%emt 0:02:04]} 17. dxe5 {[%emt 0:03:17]} dxe5 {[%emt 0:05:
31]} 18. Ng4 {[%emt 0:04:47]} Qc6 {[%emt 0:10:21]} 19. f3 {[%emt 0:04:31]} Nd5
{[%emt 0:08:53]} 20. Bf5 {[%emt 0:07:23]} Nf4 {[%emt 0:12:41]} 21. Bxf4 {
[%emt 0:07:22]} exf4 {[%emt 0:00:27]} 22. Qd3 {[%emt 0:01:20]} Bc5+ {[%emt 0:
04:05]} 23. Kh1 {[%emt 0:00:20]} Nf8 {[%emt 0:00:34]} 24. Ne4 {[%emt 0:04:36]}
Be7 {[%emt 0:03:14]} 25. Qd2 {[%emt 0:08:52]} Qc7 {[%emt 0:01:16]} 26. Nef2 {
[%emt 0:04:19]} h5 {[%emt 0:05:50]} 27. Ne5 {[%emt 0:00:58]} Bc5 {[%emt 0:00:
46]} 28. Ned3 {[%emt 0:04:36]} Be3 {[%emt 0:00:10]} 29. Qc2 {[%emt 0:00:05]}
Rad8 {[%emt 0:00:27]} 30. Be4 {[%emt 0:01:40]} Bc8 {[%emt 0:00:51]} 31. Nb4 {
[%emt 0:00:25]} Rd2 {[%emt 0:02:28]} 32. Qb3 {[%emt 0:05:55]} Be6 {[%emt 0:02:
00]} 33. Nd5 {[%emt 0:00:25]} Qd8 {[%emt 0:01:05]} 34. Rd1 {[%emt 0:00:52]}
Rxf2 {[%emt 0:00:31]} 35. Rxf2 {[%emt 0:01:33]} Bxf2 {[%emt 0:00:05]} 36. Qc2 {
[%emt 0:00:11]} Ba7 {[%emt 0:00:55]} 37. Nxf4 {[%emt 0:00:21]} Qg5 {[%emt 0:00:
31]} 38. Nxe6 {[%emt 0:00:14]} Nxe6 {[%emt 0:00:20]} 39. Rd7 {[%emt 0:00:48]}
Qe3 {[%emt 0:00:18]} 0-1